lending/lending_fUSD_20240111
["ID","MTS","AMOUNT","RATE_DAILY","PERIOD"]
[311182025,1704972633971,-437.1,0.00038873,4]
[311182026,1704972633983,-281.73212903,0.0003898,2]
[311182027,1704972633993,-500.0,0.00038999,4]
[311182028,1704972634002,-500.0,0.00038999,5]
[311182029,1704972634015,-1400.67,0.00038999,4]
[311182030,1704972634025,-23581.23540555,0.00039,6]
[311182031,1704972634034,-250.0,0.00039,2]
[311182032,1704972634045,-500.0,0.00039,2]
[311182033,1704972634055,-500.0,0.00039,2]
[311182034,1704972634064,-500.0,0.00039,2]
[311182035,1704972634074,-500.0,0.00039,2]
[311182036,1704972634083,-500.0,0.00039,2]
[311182037,1704972634092,-500.0,0.00039,2]
[311182038,1704972634102,-500.0,0.00039,2]
[311182039,1704972634111,-500.0,0.00039,2]
[311182040,1704972634120,-500.0,0.00039,2]
[311182041,1704972634130,-500.0,0.00039,2]
[311182042,1704972634139,-500.0,0.00039,2]
[311182043,1704972634149,-500.0,0.00039,2]
[311182044,1704972634159,-500.0,0.00039,2]
[311182045,1704972634169,-500.0,0.00039,2]
[311182046,1704972634178,-500.0,0.00039,2]
[311182047,1704972634188,-500.0,0.00039,2]
[311182048,1704972634197,-500.0,0.00039,2]
[311182049,1704972634206,-500.0,0.00039,2]
[311182050,1704972634215,-500.0,0.00039,2]
[311182051,1704972634226,-500.0,0.00039,2]
[311182052,1704972634236,-500.0,0.00039,2]
[311182053,1704972634245,-500.0,0.00039,2]
[311182054,1704972634255,-500.0,0.00039,2]
[311182055,1704972634265,-500.0,0.00039,2]
[311182056,1704972634274,-500.0,0.00039,2]
[311182057,1704972634284,-500.0,0.00039,2]
[311182058,1704972634293,-500.0,0.00039,2]
[311182059,1704972634302,-500.0,0.00039,2]
[311182060,1704972634311,-500.0,0.00039,2]
[311182062,1704972634321,-500.0,0.00039,2]
[311182064,1704972634330,-500.0,0.00039,2]
[311182066,1704972634339,-17758.5821026,0.00039,2]
[311182068,1704972634348,-1427.43973993,0.00039,2]
[311182070,1704972634357,-1000.0,0.00039,30]
[311182072,1704972634366,-150.0,0.00039,21]
[311182074,1704972634375,-2604.56002986,0.00039,2]
[311182075,1704972634384,-4910.25027536,0.00039,2]
[311182076,1704972634397,-6781.83714999,0.00039,2]
[311182097,1704972640371,-129188.07547465,0.00039,2]
[311182098,1704972640381,-150.0,0.00039062,2]
[311182099,1704972640392,-151.40111,0.00039098,8]
[311182100,1704972640402,-151.44,0.00039121,2]
[311182101,1704972640412,-500.0,0.00039147,2]
[311182102,1704972640422,-500.0,0.00039147,4]
[311182103,1704972640431,-500.0,0.00039147,4]
[311182104,1704972640443,-500.0,0.00039147,4]
[311182105,1704972640453,-500.0,0.00039147,4]
[311182106,1704972640462,-150.0,0.0003915,2]
[311182107,1704972640472,-150.0,0.00039155,2]
[311182108,1704972640484,-150.0,0.00039171,2]
[311182109,1704972640493,-150.0,0.00039175,2]
[311182110,1704972640502,-500.0,0.00039178,4]
[311182111,1704972640512,-150.0,0.00039184,2]
[311182112,1704972640522,-150.0,0.00039193,2]
[311182113,1704972640532,-500.0,0.00039197,4]
[311182114,1704972640541,-500.0,0.00039197,4]
[311182115,1704972640550,-500.0,0.00039197,4]
[311182116,1704972640559,-500.0,0.00039197,4]
[311182117,1704972640569,-151.40111,0.00039198,8]
[311182118,1704972640578,-572.06,0.00039198,4]
[311182119,1704972640586,-500.0,0.00039198,4]
[311182120,1704972640596,-500.0,0.00039198,4]
[311182121,1704972640604,-159.46,0.000392,2]
[311182122,1704972640613,-150.0,0.00039226,2]
[311182123,1704972640623,-150.0,0.00039233,2]
[311182124,1704972640633,-150.0,0.00039257,2]
[311182125,1704972640642,-705.62,0.0003926,2]
[311182126,1704972640651,-150.0,0.00039265,2]
[311182127,1704972640661,-500.0,0.00039273,4]
[311182128,1704972640671,-500.0,0.00039273,4]
[311182129,1704972640680,-500.0,0.00039273,4]
[311182130,1704972640689,-500.0,0.00039273,4]
[311182131,1704972640699,-500.0,0.00039273,5]
[311182132,1704972640708,-1400.67,0.00039273,4]
[311182133,1704972640717,-490.51898179,0.00039287,9]
[311182134,1704972640727,-151.40111,0.00039298,8]
[311182135,1704972640737,-150.0,0.00039321,2]
[311182136,1704972640747,-150.0,0.00039322,2]
[311182137,1704972640756,-165.09116478,0.00039335,7]
[311182138,1704972640765,-150.0,0.00039343,2]
[311182139,1704972640776,-5800.0,0.00039344,2]
[311182140,1704972640785,-150.0,0.00039346,2]
[311182141,1704972640794,-5800.0,0.00039353,2]
[311182142,1704972640803,-5800.0,0.00039362,2]
[311182143,1704972640812,-150.0,0.00039363,2]
[311182144,1704972640822,-150.0,0.00039366,2]
[311182145,1704972640831,-5800.0,0.0003937,2]
[311182146,1704972640841,-5800.0,0.00039379,2]
[311182147,1704972640850,-5800.0,0.00039387,2]
[311182148,1704972640861,-151.40111,0.00039398,8]
[311182149,1704972640870,-1021.97403,0.000394,2]
[311182150,1704972640879,-1000.0,0.000394,2]
[311182151,1704972640889,-150.0,0.00039414,2]
[311182152,1704972640898,-481.9481,0.00039421,2]
[311182153,1704972640907,-500.0,0.00039421,4]
[311182154,1704972640916,-500.0,0.00039421,4]
[311182155,1704972640925,-500.0,0.00039421,4]
[311182156,1704972640935,-500.0,0.00039421,4]
[311182157,1704972640944,-150.0,0.00039423,2]
[311182159,1704972640956,-150.0,0.00039433,2]
[311182161,1704972640965,-150.0,0.0003945,2]
[311182162,1704972640974,-500.0,0.00039452,4]
[311182163,1704972640986,-3282.54047763,0.00039452,2]
[311182164,1704972640997,-150.0,0.0003946,2]
[311182165,1704972641006,-150.0,0.00039461,2]
[311182167,1704972641016,-150.0,0.00039466,2]
[311182169,1704972641024,-500.0,0.00039471,4]
[311182171,1704972641034,-500.0,0.00039471,4]
[311182172,1704972641044,-500.0,0.00039471,4]
[311182174,1704972641053,-500.0,0.00039471,4]
[311182176,1704972641062,-572.06,0.00039472,4]
[311182178,1704972641072,-258.97875449,0.00039472,4]
[311182180,1704972641081,-500.0,0.00039472,4]
[311182182,1704972641089,-5800.0,0.0003948,2]
[311182184,1704972641098,-150.0,0.0003948,2]
[311182186,1704972641107,-150.0,0.00039486,2]
[311182188,1704972641116,-150.0,0.0003949,2]
[311182190,1704972641125,-150.35,0.00039491,2]
[311182192,1704972641134,-151.40111,0.00039498,8]
[311182193,1704972641143,-150.0,0.00039498,2]
[311182194,1704972641153,-270.12463942,0.00039499,2]
[311182195,1704972641163,-20663.85720047,0.000395,4]
[311182196,1704972641172,-9670.06343586,0.00039501,2]
[311182197,1704972641181,-150.0,0.00039507,2]
[311182198,1704972641192,-167.63778095,0.00039509,7]
[311182199,1704972641201,-150.0,0.00039519,2]
[311182200,1704972641211,-150.0,0.00039521,2]
[311182201,1704972641221,-150.0,0.00039534,2]
[311182202,1704972641435,-150.0,0.00039538,2]
[311182203,1704972641447,-150.0,0.00039543,2]
[311182204,1704972641456,-1500.0,0.00039543,2]
[311182205,1704972641465,-150.0,0.00039545,2]
[311182206,1704972641475,-261.11,0.00039546,2]
[311182207,1704972641488,-500.0,0.00039547,4]
[311182208,1704972641498,-500.0,0.00039547,4]
[311182209,1704972641507,-500.0,0.00039547,4]
[311182210,1704972641516,-500.0,0.00039547,4]
[311182211,1704972641526,-500.0,0.00039547,5]
[311182212,1704972641672,-1400.67,0.00039547,4]
[311182213,1704972641682,-307.40170157,0.00039556,2]
[311182214,1704972641693,-150.0,0.00039561,2]
[311182215,1704972641702,-292.48951078,0.00039561,11]
[311182216,1704972641712,-150.0,0.00039565,2]
[311182217,1704972641722,-3301.085,0.0003958,2]
[311182218,1704972641735,-4899.52684213,0.0003958,2]
[311182219,1704972641744,-2845.74773785,0.0003958,2]
[311182220,1704972641754,-150.0,0.00039585,2]
[311182221,1704972641763,-151.40111,0.00039598,8]
[311182222,1704972641773,-150.0,0.00039598,2]
[311182223,1704972641783,-150.0,0.0003962,2]
[311182224,1704972641792,-150.0,0.00039626,2]
[311182225,1704972641802,-1620.30444812,0.00039626,2]
[311182226,1704972641811,-150.0,0.00039629,2]
[311182227,1704972641822,-150.0,0.00039629,2]
[311182228,1704972641831,-150.0,0.00039632,2]
[311182229,1704972641840,-150.0,0.00039661,2]
[311182230,1704972641850,-150.0,0.00039671,2]
[311182231,1704972641859,-150.0,0.00039675,2]
[311182232,1704972641869,-158.46,0.00039679,2]
[311182233,1704972641878,-1649.87865511,0.00039685,10]
[311182234,1704972641888,-204.0,0.00039688,2]
[311182235,1704972641897,-150.0,0.0003969,2]
[311182236,1704972641907,-1649.87865511,0.0003969,10]
[311182237,1704972641917,-500.0,0.00039695,4]
[311182238,1704972641929,-500.0,0.00039695,4]
[311182239,1704972641938,-500.0,0.00039695,4]
[311182240,1704972641948,-500.0,0.00039695,4]
[311182241,1704972641958,-150.0,0.00039696,2]
[311182242,1704972641967,-151.40111,0.00039698,8]
[311182243,1704972641977,-8000.0,0.000397,2]
[311182244,1704972641991,-158.79,0.000397,3]
[311182245,1704972642001,-158.79,0.000397,3]
[311182246,1704972642010,-158.79,0.000397,3]
[311182247,1704972642020,-158.79,0.000397,3]
[311182248,1704972642030,-158.79,0.000397,3]
[311182249,1704972642039,-158.79,0.000397,3]
[311182250,1704972642048,-158.79,0.000397,3]
[311182251,1704972642057,-158.79,0.000397,3]
[311182252,1704972642067,-158.79,0.000397,3]
[311182253,1704972642077,-158.79,0.000397,3]
[311182254,1704972642087,-158.79,0.000397,3]
[311182255,1704972642096,-158.79,0.000397,3]
[311182256,1704972642106,-158.79,0.000397,3]
[311182257,1704972642115,-158.79,0.000397,3]
[311182258,1704972642125,-158.79,0.000397,3]
[311182259,1704972642135,-158.79,0.000397,3]
[311182260,1704972642146,-158.79,0.000397,3]
[311182261,1704972642157,-158.79,0.000397,3]
[311182262,1704972642168,-158.79,0.000397,3]
[311182263,1704972642179,-158.79,0.000397,3]
[311182264,1704972642189,-500.0,0.00039726,4]
[311182265,1704972642199,-150.0,0.0003973,2]
[311182266,1704972642208,-150.0,0.0003973,2]
[311182267,1704972642218,-150.0,0.00039733,2]
[311182268,1704972642228,-1649.87865511,0.00039735,10]
[311182269,1704972642243,-1649.87865511,0.00039744,10]
[311182270,1704972642254,-500.0,0.00039745,4]
[311182271,1704972642263,-500.0,0.00039745,4]
[311182272,1704972642273,-500.0,0.00039745,4]
[311182273,1704972642282,-500.0,0.00039745,4]
[311182274,1704972642292,-572.06,0.00039746,4]
[311182275,1704972642301,-158.82884633,0.00039746,4]
[311182276,1704972642311,-150.0,0.00039752,2]
[311182278,1704972642320,-285.29819584,0.00039754,2]
[311182280,1704972642331,-150.0,0.00039755,2]
[311182282,1704972642341,-150.0,0.0003976,2]
[311182284,1704972642351,-150.0,0.00039769,2]
[311182286,1704972642361,-150.0,0.0003977,2]
[311182288,1704972642370,-150.0,0.00039776,2]
[311182290,1704972642380,-150.0,0.00039777,2]
[311182292,1704972642389,-150.0,0.00039793,2]
[311182295,1704972642399,-150.0,0.00039797,2]
[311182298,1704972642408,-151.40111,0.00039798,8]
[311182301,1704972642418,-150.0,0.00039804,2]
[311182306,1704972642427,-150.0,0.00039805,2]
[311182310,1704972642436,-150.0,0.00039806,2]
[311182314,1704972642446,-500.0,0.00039821,4]
[311182318,1704972642456,-500.0,0.00039821,4]
[311182323,1704972642466,-500.0,0.00039821,4]
[311182328,1704972642475,-500.0,0.00039821,4]
[311182331,1704972642490,-500.0,0.00039821,5]
[311182334,1704972642499,-1400.67,0.00039821,4]
[311182337,1704972642507,-1649.87865511,0.00039827,10]
[311182340,1704972642516,-150.0,0.00039833,2]
[311182343,1704972642525,-150.0,0.00039833,2]
[311182345,1704972642534,-150.0,0.00039834,2]
[311182349,1704972642543,-7500.0,0.00039837,2]
[311182350,1704972642552,-150.0,0.00039838,2]
[311182352,1704972642562,-174.71,0.00039841,2]
[311182354,1704972642571,-150.0,0.00039851,2]
[311182355,1704972642580,-150.0,0.00039852,2]
[311182356,1704972642589,-150.0,0.00039874,2]
[311182357,1704972642598,-150.0,0.00039876,2]
[311182358,1704972642606,-150.0,0.00039885,2]
[311182359,1704972642616,-1649.87865511,0.0003989,10]
[311182360,1704972642625,-2043.0,0.0003989,3]
[311182361,1704972642634,-150.0,0.00039894,2]
[311182362,1704972642643,-151.40111,0.00039898,8]
[311182363,1704972642652,-250.0,0.00039899,2]
[311182364,1704972642662,-3915.20663184,0.000399,13]
[311182365,1704972642671,-151.13211952,0.000399,6]
[311182366,1704972642681,-55555.0,0.000399,3]
[311182367,1704972642690,-150.0,0.00039902,2]
[311182368,1704972642700,-150.0,0.00039907,2]
[311182369,1704972642709,-160.38007595,0.00039937,7]
[311182370,1704972642719,-150.0,0.0003995,2]
[311182371,1704972642730,-150.0,0.00039956,2]
[311182372,1704972642740,-150.0,0.00039957,2]
[311182373,1704972642749,-150.0,0.00039966,2]
[311182374,1704972642758,-150.0,0.00039969,2]
[311182375,1704972642766,-500.0,0.00039969,4]
[311182376,1704972642775,-300.49119489,0.00039969,4]
[311182377,1704972642784,-500.0,0.00039969,4]
[311182378,1704972642793,-500.0,0.00039969,4]
[311182379,1704972642802,-316.98513889,0.0003998,3]
[311182380,1704972642812,-36297.3304124,0.0003998,10]
[311182381,1704972642821,-83675.8241557,0.0003998,5]
[311182382,1704972642831,-167.94131411,0.00039987,2]
[311182383,1704972642840,-83675.8241557,0.0003999,5]
[311182384,1704972642849,-251027.472467,0.0003999,5]
[311182385,1704972642859,-2094.0,0.0003999,3]
[311182386,1704972642868,-150.0,0.00039993,2]
[311182387,1704972642877,-151.40111,0.00039998,8]
[311182388,1704972642887,-3291.64435569,0.00039999,2]
[311182389,1704972642896,-150.01,0.00039999,2]
[311182390,1704972642905,-150.0,0.00039999,2]
[311182391,1704972642914,-100000.0,0.0004,7]
[311182392,1704972642924,-203848.349187,0.0004,15]
[311182393,1704972642933,-603.08552334,0.0004,4]
[311182394,1704972642942,-34402.86278608,0.0004,4]
[311182395,1704972642953,-2000.0,0.0004,24]
[311182396,1704972642962,-226.54058508,0.0004,4]
[311182397,1704972642971,-521.97011643,0.0004,2]
[311182398,1704972642982,-157.98046617,0.0004,4]
[311182399,1704972642992,-966.48279954,0.0004,4]
[311182400,1704972643004,-3945.25154,0.0004,120]
[311182401,1704972643014,-155.0,0.0004,2]
[311182402,1704972643022,-161.0377925,0.0004,30]
[311182403,1704972643031,-806.09957877,0.0004,2]
[311182404,1704972643041,-491.76661371,0.0004,30]
[311182405,1704972643050,-1000.0,0.0004,30]
[311182406,1704972643060,-1000.0,0.0004,30]
[311182407,1704972643069,-1000.0,0.0004,30]
[311182408,1704972643078,-1000.0,0.0004,30]
[311182409,1704972643087,-1000.0,0.0004,30]
[311182410,1704972643096,-1195.75686936,0.0004,2]
[311182411,1704972643106,-362.20953979,0.0004,7]
[311182412,1704972643115,-1000.0,0.0004,5]
[311182413,1704972643124,-289.0,0.0004,30]
[311182414,1704972643133,-155.10637795,0.0004,120]
[311182415,1704972643142,-300.0,0.0004,41]
[311182416,1704972643151,-2283.1684407,0.0004,2]
[311182417,1704972643192,-20000.0,0.0004,30]
[311182418,1704972643201,-155.20936272,0.0004,3]
[311182419,1704972643210,-1687.98,0.0004,14]
[311182420,1704972643219,-669.32141845,0.0004,4]
[311182421,1704972643232,-822.71508083,0.0004,7]
[311182422,1704972643241,-904.153256,0.0004,30]
[311182423,1704972643250,-659.96111596,0.0004,10]
[311182424,1704972643258,-1005.0,0.0004,2]
[311182425,1704972643268,-4749.95217377,0.0004,15]
[311182426,1704972643277,-3896.86094117,0.0004,2]
[311182427,1704972643286,-2009.06021045,0.0004,4]
[311182428,1704972643296,-12171.56841008,0.0004,2]
[311182429,1704972643305,-1615.0,0.0004,30]
[311182430,1704972643314,-8248.74458212,0.0004,5]
[311182431,1704972643332,-10310.45842641,0.0004,5]
[311182432,1704972643342,-4000.0,0.0004,20]
[311182433,1704972643351,-238.30293209,0.0004,120]
[311182434,1704972643360,-1623.1675785,0.0004,120]
[311182435,1704972643370,-1200.0,0.0004,30]
[311182436,1704972643379,-2239.0,0.0004,30]
[311182437,1704972643388,-400.0,0.0004,120]
[311182438,1704972643397,-350.0,0.0004,120]
[311182439,1704972643406,-8000.0,0.0004,44]
[311182440,1704972643415,-1000.0,0.0004,30]
[311182441,1704972643424,-200.0,0.0004,15]
[311182442,1704972643434,-517.19838088,0.0004,4]
[311182443,1704972643443,-26758.074449,0.0004,2]
[311182444,1704972643452,-2003.5655,0.0004,3]
[311182445,1704972643462,-5828.59671036,0.0004,2]
[311182446,1704972643472,-2000.0,0.0004,30]
[311182447,1704972643484,-2255.1540701,0.0004,3]
[311182448,1704972643493,-942.959799,0.0004,7]
[311182449,1704972643502,-153.952496,0.0004,29]
[311182450,1704972643511,-255.0,0.0004,12]
[311182451,1704972643521,-255.0,0.0004,12]
[311182453,1704972643530,-255.0,0.0004,12]
[311182454,1704972643540,-213.0,0.0004,30]
[311182455,1704972643549,-150.0,0.0004,12]
[311182456,1704972643558,-255.0,0.0004,12]
[311182457,1704972643568,-255.0,0.0004,12]
[311182458,1704972643577,-183.0,0.0004,14]
[311182459,1704972643587,-2003.34,0.0004,2]
[311182460,1704972643596,-150.0,0.0004,12]
[311182461,1704972643606,-255.0,0.0004,12]
[311182462,1704972643615,-1000.0,0.0004,50]
[311182463,1704972643624,-4273.0,0.0004,90]
[311182464,1704972643634,-560.198475,0.0004,15]
[311182465,1704972643643,-150.0,0.0004,2]
[311182466,1704972643652,-255.0,0.0004,12]
[311182467,1704972643662,-319.22,0.0004,2]
[311182468,1704972643671,-5930.12308619,0.0004,2]
[311182469,1704972643681,-160781.28922931,0.0004,2]
[311182470,1704972643691,-210.38937704,0.0004,2]
[311182471,1704972643699,-500.0,0.0004,4]
[311182472,1704972643709,-315.231666,0.0004,3]
[311182473,1704972643719,-7298.2073654,0.00040011,2]
[311182474,1704972643728,-274.77479041,0.00040011,2]
[311182475,1704972643738,-343.40613563,0.00040011,2]
[311182476,1704972643747,-490.51898177,0.00040017,9]
[311182477,1704972643756,-500.0,0.00040019,4]
[311182478,1704972643765,-500.0,0.00040019,4]
[311182479,1704972643775,-500.0,0.00040019,4]
[311182480,1704972643785,-500.0,0.00040019,4]
[311182481,1704972643795,-572.06,0.0004002,4]
[311182482,1704972643804,-150.0,0.00040038,2]
[311182483,1704972643814,-150.0,0.00040038,2]
[311182484,1704972643824,-500.0,0.00040095,4]
[311182485,1704972643833,-500.0,0.00040095,4]
[311182486,1704972643843,-500.0,0.00040095,4]
[311182487,1704972643852,-500.0,0.00040095,4]
[311182488,1704972643862,-500.0,0.00040095,5]
[311182489,1704972643872,-1400.67,0.00040095,4]
[311182490,1704972643881,-151.40111,0.00040098,8]
[311182491,1704972643890,-151.40111,0.00040198,8]
[311182492,1704972643899,-431.3,0.00040199,2]
[311182493,1704972643909,-1000.0,0.00040209,10]
[311182494,1704972643919,-270.92021202,0.00040215,7]
[311182495,1704972643928,-500.0,0.00040243,4]
[311182496,1704972643938,-500.0,0.00040243,4]
[311182497,1704972643948,-190.33364748,0.00040243,4]
[311182498,1704972643958,-500.0,0.00040273,4]
[311182499,1704972643967,-500.0,0.00040293,4]
[311182500,1704972643977,-500.0,0.00040293,4]
[311182501,1704972643989,-500.0,0.00040293,4]
[311182502,1704972643999,-418.81259994,0.00040293,4]
[311182503,1704972644009,-572.06,0.00040294,4]
[311182504,1704972644018,-151.40111,0.00040298,8]
[311182505,1704972644028,-3915.20663181,0.00040309,14]
[311182506,1704972644037,-500.0,0.00040369,4]
[311182507,1704972644047,-500.0,0.00040369,4]
[311182508,1704972644056,-500.0,0.00040369,4]
[311182509,1704972644066,-500.0,0.00040369,4]
[311182510,1704972644076,-500.0,0.00040369,5]
[311182511,1704972644085,-1400.67,0.00040369,4]
[311182512,1704972644095,-151.13211952,0.00040377,8]
[311182513,1704972644104,-83675.8241557,0.00040378,5]
[311182514,1704972644114,-591.55316368,0.0004038,21]
[311182515,1704972644123,-1250.34,0.00040388,7]
[311182516,1704972644133,-1250.34,0.00040388,7]
[311182517,1704972644143,-1250.34,0.00040388,7]
[311182518,1704972644153,-1250.34,0.00040388,7]
[311182519,1704972644162,-1000.0,0.000404,2]
[311182520,1704972644171,-1000.0,0.000404,2]
[311182521,1704972644181,-1184.851182,0.0004042,2]
[311182522,1704972644190,-594.856558,0.0004042,2]
[311182523,1704972644200,-172.0,0.0004043,50]
[311182524,1704972644210,-3645.0,0.00040463,7]
[311182525,1704972644220,-151.40111,0.00040498,8]
[311182526,1704972644229,-38208.73688342,0.000405,2]
[311182527,1704972644241,-153.0,0.000405,7]
[311182528,1704972644251,-441.51507136,0.000405,2]
[311182529,1704972644260,-500.0,0.00040517,4]
[311182530,1704972644270,-500.0,0.00040517,4]
[311182531,1704972644279,-261.11,0.00040525,2]
[311182532,1704972644288,-500.0,0.00040547,4]
[311182533,1704972644298,-500.0,0.00040567,4]
[311182534,1704972644308,-500.0,0.00040567,4]
[311182535,1704972644318,-500.0,0.00040567,4]
[311182536,1704972644328,-572.06,0.00040568,4]
[311182537,1704972644337,-941.0,0.00040598,2]
[311182538,1704972644346,-834.0,0.00040598,2]
[311182539,1704972644355,-1234.0,0.00040598,2]
[311182540,1704972644365,-168.71222685,0.00040607,30]
[311182541,1704972644374,-152.0,0.0004063,3]
[311182542,1704972644385,-500.0,0.00040643,4]
[311182543,1704972644395,-500.0,0.00040643,4]
[311182544,1704972644405,-500.0,0.00040643,4]
[311182545,1704972644414,-500.0,0.00040643,4]
[311182546,1704972644424,-500.0,0.00040643,5]
[311182547,1704972644433,-1400.67,0.00040643,4]
[311182548,1704972644443,-500.0,0.0004065,4]
[311182549,1704972644452,-500.0,0.0004065,4]
[311182550,1704972644461,-500.0,0.0004065,4]
[311182551,1704972644470,-500.0,0.0004065,4]
[311182552,1704972644479,-500.0,0.0004065,4]
[311182553,1704972644601,-1250.34,0.00040661,7]
[311182554,1704972644610,-1250.34,0.00040661,7]
[311182555,1704972644620,-6838.05163609,0.00040684,2]
[311182556,1704972644630,-7811.0,0.00040691,30]
[311182557,1704972644641,-403.0,0.00040691,30]
[311182558,1704972644650,-151.40111,0.00040698,8]
[311182559,1704972644660,-4352.0,0.000407,81]
[311182560,1704972644670,-158.79,0.000407,4]
[311182561,1704972644680,-158.79,0.000407,4]
[311182562,1704972644690,-158.79,0.000407,4]
[311182563,1704972644699,-158.79,0.000407,4]
[311182564,1704972644709,-158.79,0.000407,4]
[311182565,1704972644718,-158.79,0.000407,4]
[311182566,1704972644728,-158.79,0.000407,4]
[311182567,1704972644740,-158.79,0.000407,4]
[311182568,1704972644750,-158.79,0.000407,4]
[311182569,1704972644760,-158.79,0.000407,4]
[311182570,1704972644769,-158.79,0.000407,4]
[311182571,1704972644779,-158.79,0.000407,4]
[311182572,1704972644789,-158.79,0.000407,4]
[311182573,1704972644800,-158.79,0.000407,4]
[311182574,1704972644809,-158.79,0.000407,4]
[311182575,1704972644820,-158.79,0.000407,4]
[311182576,1704972644830,-158.79,0.000407,4]
[311182577,1704972644840,-158.79,0.000407,4]
[311182578,1704972644850,-158.79,0.000407,4]
[311182579,1704972644861,-158.79,0.000407,4]
[311182580,1704972644870,-400.0,0.00040712,120]
[311182581,1704972644880,-3915.20663181,0.00040718,14]
[311182582,1704972644889,-1000.0,0.00040725,10]
[311182583,1704972644899,-1000.0,0.00040725,10]
[311182584,1704972644910,-1000.0,0.00040725,10]
[311182585,1704972644919,-1000.0,0.00040725,10]
[311182586,1704972644929,-1000.0,0.00040726,10]
[311182587,1704972644939,-705.62,0.00040733,2]
[311182588,1704972644950,-490.51898177,0.00040748,10]
[311182589,1704972644961,-150.91204937,0.00040755,7]
[311182590,1704972644971,-350.0,0.00040767,120]
[311182591,1704972644980,-2569.50555685,0.00040772,3]
[311182592,1704972644996,-812.15914554,0.00040779,2]
[311182593,1704972645006,-4989.0,0.0004079,3]
[311182594,1704972645016,-500.0,0.00040791,4]
[311182595,1704972645026,-500.0,0.00040791,4]
[311182596,1704972645036,-500.0,0.00040821,4]
[311182597,1704972645046,-1000.0,0.00040834,10]
[311182598,1704972645056,-500.0,0.00040841,4]
[311182599,1704972645066,-500.0,0.00040841,4]
[311182600,1704972645076,-500.0,0.00040841,4]
[311182601,1704972645085,-572.06,0.00040842,4]
[311182602,1704972645094,-151.44,0.00040846,2]
[311182603,1704972645104,-83675.8241557,0.00040851,6]
[311182604,1704972645114,-151.13211952,0.00040853,9]
[311182605,1704972645124,-2003.34,0.00040855,2]
[311182606,1704972645133,-1000.0,0.00040861,10]
[311182607,1704972645142,-5904.4694371,0.00040861,2]
[311182608,1704972645152,-209.0,0.0004087,2]
[311182609,1704972645161,-210.0,0.0004087,2]
[311182610,1704972645170,-240054.85782048,0.00040879,3]
[311182611,1704972645184,-8772.66638645,0.00040879,3]
[311182613,1704972645418,457.86,0.00037598,2]
[311182614,1704972645437,-795.15738,0.00040879,3]
[311182615,1704972645449,-2074.14907395,0.00040879,3]
[311182617,1704972645486,385.51062519,0.0003594,10]
[311182621,1704972645559,-514.65781082,0.00040879,3]
[311182622,1704972645572,-675.49309466,0.00040879,3]
[311182623,1704972645583,-22274.75753966,0.00040879,3]